fUST/lending_fUST_20250930
["ID","MTS","AMOUNT","RATE_DAILY","PERIOD"]
[388415425,1759161603149,-1122.0,0.00023594,2]
[388415426,1759161603330,-1208.65,0.00023669,2]
[388415427,1759161603480,-300.0,0.00023765,2]
[388415428,1759161603619,-300.0,0.00023765,2]
[388415429,1759161603754,-300.0,0.00023765,2]
[388415430,1759161603892,-300.0,0.00023765,2]
[388415431,1759161604024,-566.34,0.00023766,2]
[388415432,1759161604159,-480.0,0.00023766,2]
[388415433,1759161604288,-291.83,0.00023766,2]
[388415434,1759161610861,5000.0,0.00023401,2]
[388415435,1759161613153,-3738.18376676,0.00023666,2]
[388415436,1759161613261,-480.0,0.00023668,2]
[388415437,1759161613366,-438.84246648,0.00023669,2]
[388415438,1759161619146,1951.92347935,0.00023401,2]
[388415440,1759161635071,5000.0,0.00023668,2]
[388415441,1759161635700,206.8266531,0.00022766,2]
[388415443,1759161657356,4793.1833469,0.00023668,2]
[388415444,1759161657459,206.8166531,0.00023668,2]
[388415445,1759161663218,300.0,0.00023667,2]
[388415446,1759161672786,1189.32367197,0.00023668,2]
[388415447,1759161680621,4610.50102738,0.00023668,2]
[388415448,1759161688668,3693.36864755,0.00023668,2]
[388415449,1759161688777,354.31320243,0.00023668,2]
[388415457,1759161703999,5000.0,0.00023668,2]
[388415458,1759161731944,300.0,0.000235,2]
[388415459,1759161732051,300.0,0.00023667,2]
[388415460,1759161732200,300.0,0.000236,2]
[388415461,1759161733391,300.0,0.000234,2]
[388415462,1759161740135,1200.0,0.00023667,2]
[388415464,1759161750225,300.0,0.000236,2]
[388415465,1759161754566,300.0,0.000235,2]
[388415466,1759161783010,300.0,0.00023667,2]
[388415467,1759161827214,911.97828771,0.00023568,2]
[388415468,1759161831754,433.71850986,0.000236,2]
[388415469,1759161831853,107.51773814,0.000236,2]
[388415470,1759161838190,4719.71060439,0.00023667,2]
[388415471,1759161842680,300.0,0.00023667,2]
[388415472,1759161843421,254.52,0.000235,2]
[388415473,1759161881874,211.828389,0.00023667,2]
[388415474,1759161881974,304.80235364,0.00023667,2]
[388415475,1759161882080,500.0,0.00023667,2]
[388415476,1759161882214,500.0,0.00023667,2]
[388415477,1759161882352,500.0,0.00023667,2]
[388415478,1759161882457,500.0,0.00023667,2]
[388415479,1759161882571,500.0,0.00023667,2]
[388415480,1759161882695,170.87696124,0.00023667,2]
[388415481,1759161882813,500.0,0.00023667,2]
[388415482,1759161883040,500.0,0.00023667,2]
[388415483,1759161883148,430.75395359,0.00023667,2]
[388415484,1759161883245,69.24604641,0.00023667,2]
[388415485,1759161883409,456.53180682,0.00023667,2]
[388415486,1759161890023,500.0,0.00023667,2]
[388415487,1759161890135,316.87020888,0.00023667,2]
[388415488,1759161894797,500.0,0.00023667,2]
[388415489,1759161895063,500.0,0.00023667,2]
[388415490,1759161895173,500.0,0.00023667,2]
[388415491,1759161895376,500.0,0.00023667,2]
[388415492,1759161895540,500.0,0.00023667,2]
[388415493,1759161895742,500.0,0.00023667,2]
[388415494,1759161901718,272.0,0.00023667,2]
[388415495,1759161902315,300.0,0.00023667,2]
[388415496,1759161902456,300.0,0.00023667,2]
[388415497,1759161906963,300.0,0.00023667,2]
[388415498,1759161907695,1200.0,0.00023667,2]
[388415499,1759161912180,480.0,0.00023667,2]
[388415500,1759161912653,500.0,0.00023667,2]
[388415501,1759161912866,460.0,0.00023667,2]
[388415502,1759161925905,1845.36193789,0.00022727,2]
[388415503,1759161926009,8162.71788591,0.00022727,2]
[388415505,1759161945829,1000.0,0.00022722,2]
[388415506,1759161950514,480.0,0.00023667,2]
[388415507,1759161957496,357.29211409,0.00023667,2]
[388415508,1759161957596,122.70788591,0.00023667,2]
[388415509,1759161962963,300.0,0.00023667,2]
[388415510,1759161971982,-1742.49621158,0.00023668,2]
[388415511,1759161972457,-10000.01,0.00023668,2]
[388415512,1759161999271,-571.31621158,0.00023668,2]
[388415513,1759161999474,-8857.37757684,0.00023668,2]
[388415514,1759161999604,-10000.01,0.00023668,2]
[388415515,1759161999892,-10000.01,0.00023668,2]
[388415516,1759162000198,-4303.692572,0.00023668,2]
[388415517,1759162000313,-160.0,0.00023668,2]
[388415518,1759162000436,-480.0,0.00023668,2]
[388415519,1759162000932,-2075.26,0.00023668,2]
[388415520,1759162001042,-909.02,0.00023668,2]
[388415521,1759162001148,-480.0,0.00023668,2]
[388415522,1759162001264,-480.0,0.00023668,2]
[388415523,1759162001374,-633.89,0.00023668,2]
[388415524,1759162001495,-363.67,0.00023668,2]
[388415525,1759162001737,-116.33,0.00023668,2]
[388415526,1759162001852,-480.0,0.00023668,2]
[388415527,1759162001965,-480.0,0.00023668,2]
[388415528,1759162002074,-480.0,0.00023668,2]
[388415529,1759162002183,-619.8,0.00023668,2]
[388415530,1759162002290,-554.19,0.00023668,2]
[388415531,1759162002401,-480.0,0.00023668,2]
[388415532,1759162002512,-480.0,0.00023668,2]
[388415533,1759162002616,-644.02,0.00023668,2]
[388415534,1759162003096,-1331.33,0.00023668,2]
[388415535,1759162003203,-624.06,0.00023668,2]
[388415536,1759162003316,-560.61,0.00023668,2]
[388415537,1759162003424,-573.88,0.00023668,2]
[388415538,1759162003537,-619.25,0.00023668,2]
[388415539,1759162003651,-639.19,0.00023668,2]
[388415540,1759162003762,-563.16,0.00023668,2]
[388415541,1759162004259,-480.0,0.00023668,2]
[388415542,1759162004375,-606.7,0.00023668,2]
[388415543,1759162004490,-1177.05,0.00023668,2]
[388415544,1759162004606,-2047.87,0.00023668,2]
[388415545,1759162004714,-480.0,0.00023668,2]
[388415546,1759162004967,-529.98,0.00023668,2]
[388415547,1759162005082,-480.0,0.00023668,2]
[388415548,1759162005195,-542.22,0.00023668,2]
[388415549,1759162005308,-531.52,0.00023668,2]
[388415550,1759162005427,-687.2,0.00023668,2]
[388415551,1759162005534,-480.0,0.00023668,2]
[388415552,1759162005644,-480.0,0.00023668,2]
[388415553,1759162005751,-480.0,0.00023668,2]
[388415554,1759162005863,-672.02,0.00023668,2]
[388415555,1759162009852,-175.474856,0.00023667,2]
[388415556,1759162009967,-313.365144,0.00023667,2]
[388415557,1759162009978,-166.634856,0.00023668,2]
[388415558,1759162010094,-156.20884501,0.00023668,2]
[388415559,1759162010104,-323.79115499,0.00023668,2]
[388415560,1759162010324,-156.20884501,0.00023668,2]
[388415561,1759162010336,-323.79115499,0.00023668,2]
[388415562,1759162010440,-381.17884501,0.00023668,2]
[388415563,1759162010451,-290.84115499,0.00023668,2]
[388415564,1759162010566,-234.13,0.00023668,2]
[388415565,1759162010787,-84.89884501,0.00023668,2]
[388415566,1759162010901,-962.42,0.00023668,2]
[388415567,1759162011018,-1988.23,0.00023668,2]
[388415568,1759162011129,-480.0,0.00023668,2]
[388415569,1759162011241,-480.0,0.00023668,2]
[388415570,1759162011365,-3784.73,0.00023668,2]
[388415571,1759162011474,-586.7507266,0.00023668,2]
[388415572,1759162011577,-480.0,0.00023668,2]
[388415573,1759162011694,-480.0,0.00023668,2]
[388415574,1759162011798,-4141.57,0.00023668,2]
[388415575,1759162011912,-276.87,0.00023668,2]
[388415578,1759162013245,-203.13,0.00023668,2]
[388415579,1759162013256,-1044.02,0.00023668,2]
[388415580,1759162013467,-480.0,0.00023668,2]
[388415581,1759162013477,-301.94085678,0.00023668,2]
[388415582,1759162013590,-178.05914322,0.00023668,2]
[388415583,1759162013602,-301.94085678,0.00023668,2]
[388415647,1759162049337,-300.0,0.00023667,2]
[388415648,1759162049468,-527.41,0.00023667,2]
[388415649,1759162049580,-1200.0,0.00023667,2]
[388415650,1759162049709,-230.87914322,0.00023668,2]
[388415651,1759162050065,-480.0,0.00023668,2]
[388415652,1759162050183,-480.0,0.00023668,2]
[388415653,1759162050295,-1066.06,0.00023668,2]
[388415654,1759162050406,-479.31171356,0.00023668,2]
[388415655,1759162050917,-472.68828644,0.00023668,2]
[388415656,1759162051038,-480.0,0.00023668,2]
[388415657,1759162051150,-858.5,0.00023668,2]
[388415658,1759162051251,-480.0,0.00023668,2]
[388415659,1759162051361,-480.0,0.00023668,2]
[388415660,1759162051477,-615.19,0.00023668,2]
[388415661,1759162051594,-273.57666685,0.00023752,2]
[388415662,1759162051722,-500.0,0.00023752,2]
[388415663,1759162051850,-500.0,0.00023752,2]
[388415664,1759162051976,-180.10009342,0.00023752,2]
[388415665,1759162052503,-319.89990658,0.00023752,2]
[388415666,1759162052626,-500.0,0.00023752,2]
[388415667,1759162052741,-231.61387287,0.00023752,2]
[388415668,1759162052862,-500.0,0.00023752,2]
[388415669,1759162052986,-500.0,0.00023752,2]
[388415670,1759162053112,-500.0,0.00023752,2]
[388415671,1759162053240,-500.0,0.00023752,2]
[388415672,1759162053369,-500.0,0.00023752,2]
[388415673,1759162053497,-500.0,0.00023752,2]
[388415674,1759162053619,-500.0,0.00023752,2]
[388415675,1759162053741,-396.9824411,0.00023752,2]
[388415676,1759162054261,-103.0175589,0.00023752,2]
[388415677,1759162054380,-550.0,0.00023752,2]
[388415678,1759162054493,-456.17,0.00023753,3]
[388415679,1759162054611,-228.09,0.00023753,3]
[388415680,1759162054725,-684.27,0.00023753,3]
[388415681,1759162054838,-188.82,0.00023753,10]
[388415682,1759162054955,-157.35,0.00023753,10]
[388415683,1759162055078,-2302.5248822,0.00023756,3]
[388415684,1759162055223,-659.5251178,0.00023756,3]
[388415685,1759162055343,-1706.53,0.00023756,3]
[388415686,1759162055468,-853.27,0.00023756,3]
[388415687,1759162055584,-426.63,0.00023756,3]
[388415688,1759162055699,-213.32,0.00023756,3]
[388415689,1759162055817,-480.0,0.00023763,2]
[388415690,1759162055934,-480.0,0.00023763,2]
[388415691,1759162056431,-480.0,0.00023763,2]
[388415692,1759162056551,-481.09810968,0.00023763,2]
[388415693,1759162056667,-516.42,0.00023763,2]
[388415694,1759162056789,-480.0,0.00023763,2]
[388415695,1759162056908,-480.0,0.00023763,2]
[388415696,1759162057023,-532.8572633,0.00023763,2]
[388415697,1759162057137,-490.19181357,0.00023763,2]
[388415698,1759162057249,-553.76,0.00023763,2]
[388415699,1759162057362,-480.0,0.00023763,2]
[388415700,1759162057476,-480.0,0.00023763,2]
[388415701,1759162057983,-480.0,0.00023763,2]
[388415702,1759162058098,-536.27,0.00023763,2]
[388415703,1759162058219,-559.21,0.00023763,2]
[388415704,1759162058334,-555.85,0.00023763,2]
[388415705,1759162058450,-480.0,0.00023763,2]
[388415706,1759162058567,-480.0,0.00023763,2]
[388415707,1759162058683,-480.0,0.00023763,2]
[388415708,1759162058801,-480.0,0.00023763,2]
[388415709,1759162058917,-480.0,0.00023763,2]
[388415710,1759162059770,-1200.83,0.00023763,2]
[388415711,1759162059883,-480.0,0.00023763,2]
[388415712,1759162059999,-480.0,0.00023763,2]
[388415713,1759162060114,-566.37,0.00023763,2]
[388415714,1759162060224,-480.0,0.00023763,2]
[388415715,1759162060336,-509.28,0.00023763,2]
[388415716,1759162060448,-480.0,0.00023763,2]
[388415717,1759162060561,-480.0,0.00023763,2]
[388415718,1759162060673,-167.05,0.00023763,2]
[388415719,1759162067552,-312.95,0.00023763,2]
[388415720,1759162067561,-64.79810968,0.00023763,2]
[388415721,1759162067659,-512.41189032,0.00023763,2]
[388415722,1759162067669,-53.95810968,0.00023763,2]
[388415723,1759162067788,-480.0,0.00023763,2]
[388415724,1759162067891,-25.98189032,0.00023763,2]
[388415725,1759162067901,-480.0,0.00023763,2]
[388415726,1759162067911,-3.29810968,0.00023763,2]
[388415727,1759162068011,-480.0,0.00023763,2]
[388415728,1759162068126,-480.0,0.00023667,2]
[388415729,1759162068225,-99.73189032,0.00023763,2]
[388415730,1759162068234,-380.26810968,0.00023763,2]
[388415731,1759162069896,-797.98100179,0.00023663,2]
[388415732,1759162070004,-480.0,0.00023667,2]
[388415733,1759162070112,-480.0,0.00023667,2]
[388415734,1759162070216,-480.0,0.00023667,2]
[388415735,1759162070324,-786.8,0.00023756,10]
[388415736,1759162070443,-237.04189032,0.00023763,2]
[388415737,1759162070554,-948.91,0.00023763,2]
[388415738,1759162070663,-480.0,0.00023763,2]
[388415739,1759162070771,-138.54421578,0.00023763,2]
[388415740,1759162071116,-341.45578422,0.00023763,2]
[388415741,1759162071237,-497.31,0.00023763,2]
[388415742,1759162071351,-480.0,0.00023763,2]
[388415743,1759162071470,-978.37,0.00023763,2]
[388415744,1759162071583,-480.0,0.00023763,2]
[388415745,1759162071690,-480.0,0.00023763,2]
[388415746,1759162071791,-1242.24,0.00023763,2]
[388415747,1759162071893,-467.25843156,0.00023763,2]
[388415748,1759162072313,-66.74156844,0.00023763,2]
[388415749,1759162072425,-480.0,0.00023763,2]
[388415750,1759162072531,-480.0,0.00023763,2]
[388415751,1759162072639,-480.0,0.00023763,2]
[388415752,1759162072749,-480.0,0.00023763,2]
[388415753,1759162072863,-876.36,0.00023763,2]
[388415754,1759162072974,-480.0,0.00023763,2]
[388415755,1759162073090,-607.98,0.00023763,2]
[388415756,1759162073205,-480.0,0.00023763,2]
[388415757,1759162073324,-480.0,0.00023763,2]
[388415758,1759162073792,-480.0,0.00023763,2]
[388415759,1759162073913,-480.0,0.00023763,2]
[388415760,1759162074035,-480.0,0.00023763,2]
[388415761,1759162074152,-480.0,0.00023763,2]
[388415762,1759162074268,-480.0,0.00023763,2]
[388415763,1759162074383,-551.81,0.00023763,2]
[388415764,1759162074497,-962.2,0.00023763,2]
[388415765,1759162074609,-480.0,0.00023763,2]
[388415766,1759162074728,-519.81,0.00023763,2]
[388415767,1759162074985,-480.0,0.00023763,2]
[388415768,1759162075287,-480.0,0.00023763,2]
[388415769,1759162075404,-500.0,0.00023763,2]
[388415770,1759162075520,-541.6,0.00023763,2]
[388415771,1759162075636,-480.0,0.00023763,2]
[388415772,1759162075749,-480.0,0.00023763,2]
[388415773,1759162075862,-510.82,0.00023763,2]
[388415774,1759162075975,-480.0,0.00023763,2]
[388415775,1759162076090,-689.92,0.00023763,2]
[388415776,1759162076206,-235.33,0.00023763,2]
[388415777,1759162081010,-244.67,0.00023763,2]
[388415778,1759162081020,-309.72686312,0.00023763,2]
[388415779,1759162081181,-170.27313688,0.00023763,2]
[388415780,1759162081190,-309.72686312,0.00023763,2]
[388415781,1759162081615,4664.7471287,0.00022767,2]
[388415782,1759162109419,-480.0,0.00023667,2]
[388415783,1759162109537,-481.38661276,0.00023667,2]
[388415784,1759162109651,-483.58,0.00023668,2]
[388415785,1759162109769,-2308.46,0.00023668,2]
[388415786,1759162109876,-480.0,0.00023668,2]
[388415787,1759162109985,-581.29,0.00023668,2]
[388415788,1759162110116,-70.57677448,0.00023762,2]
[388415789,1759162110558,-229.42322552,0.00023762,2]
[388415790,1759162110659,-170.27313688,0.00023763,2]
[388415791,1759162110764,-566.32,0.00023763,2]
[388415792,1759162110849,-504.67,0.00023763,2]
[388415793,1759162110953,-585.61,0.00023763,2]
[388415794,1759162111077,-658.2,0.00023763,2]
[388415795,1759162111195,-985.3,0.00023763,2]
[388415796,1759162111301,-745.19,0.00023763,2]
[388415797,1759162111409,-480.0,0.00023763,2]
[388415798,1759162112048,-480.0,0.00023763,2]
[388415799,1759162112155,-901.24,0.00023763,2]
[388415800,1759162112255,-480.0,0.00023763,2]
[388415801,1759162112353,-694.84,0.00023763,2]
[388415802,1759162112453,-771.51,0.00023763,2]
[388415803,1759162112564,-480.0,0.00023763,2]
[388415804,1759162112683,-867.21,0.00023763,2]
[388415805,1759162112804,-170.41,0.00023763,2]
[388415806,1759162113065,-309.59,0.00023763,2]
[388415807,1759162113183,-480.0,0.00023763,2]
[388415808,1759162113299,-480.0,0.00023763,2]
[388415809,1759162113418,-480.0,0.00023763,2]
[388415810,1759162113539,-480.0,0.00023763,2]
[388415811,1759162113657,-550.21,0.00023763,2]
[388415812,1759162113810,-1461.35,0.00023763,2]
[388415813,1759162113959,-737.53,0.00023763,2]
[388415814,1759162114440,-589.9,0.00023763,2]
[388415815,1759162114603,-480.0,0.00023763,2]
[388415816,1759162114765,-1384.21,0.00023763,2]
[388415817,1759162114929,-480.0,0.00023763,2]
[388415818,1759162115089,-583.46,0.00023763,2]
[388415819,1759162115253,-480.0,0.00023763,2]
[388415820,1759162115398,-480.0,0.00023763,2]
[388415821,1759162115570,-480.0,0.00023763,2]
[388415822,1759162116232,-2017.69,0.00023763,2]
[388415823,1759162116382,-480.0,0.00023763,2]
[388415824,1759162116528,-480.0,0.00023763,2]
[388415825,1759162116674,-480.0,0.00023763,2]
[388415826,1759162116813,-529.9,0.00023763,2]
[388415827,1759162116954,-524.8,0.00023763,2]
[388415828,1759162117107,-485.0038613,0.00023763,2]
[388415829,1759162117747,-480.0,0.00023763,2]
[388415830,1759162117917,-480.0,0.00023763,2]
[388415831,1759162118081,-480.0,0.00023763,2]
[388415832,1759162118220,-480.0,0.00023763,2]
[388415833,1759162118600,-480.0,0.00023763,2]
[388415834,1759162118762,-981.95,0.00023763,2]
[388415835,1759162118928,-594.7,0.00023763,2]
[388415836,1759162119091,-480.0,0.00023763,2]
[388415837,1759162119254,-480.0,0.00023763,2]
[388415838,1759162125607,-425.25655078,0.00023667,2]
[388415839,1759162125699,-54.74344922,0.00023667,2]
[388415840,1759162125708,-425.25655078,0.00023763,2]
[388415841,1759162125814,-126.71,0.00023763,2]
[388415842,1759162129494,-480.0,0.00023762,2]
[388415843,1759162129611,-2650.61344922,0.00023763,2]
[388415844,1759162129715,-480.0,0.00023763,2]
[388415845,1759162129822,-480.0,0.00023763,2]
[388415846,1759162129939,-693.18,0.00023763,2]
[388415847,1759162130396,-480.0,0.00023763,2]
[388415848,1759162130501,-476.73,0.00023763,2]
[388415849,1759162130621,-480.0,0.00023763,2]
[388415850,1759162130735,-679.13,0.00023763,2]
[388415851,1759162130851,-480.0,0.00023763,2]
[388415852,1759162130964,-480.0,0.00023763,2]
[388415853,1759162131088,-480.0,0.00023763,2]
[388415854,1759162131207,-756.37,0.00023763,2]
[388415855,1759162131313,-668.53,0.00023763,2]
[388415856,1759162131766,-688.11,0.00023762,2]
[388415857,1759162131869,-480.0,0.00023763,2]
[388415858,1759162131977,-1981.29,0.00023763,2]
[388415859,1759162132080,-482.02214587,0.00023763,2]
[388415860,1759162132175,-224.32813165,0.00023763,2]
[388415861,1759162132262,-480.0,0.00023763,2]
[388415862,1759162132994,-1743.3,0.00023763,2]
[388415863,1759162133097,-2078.72,0.00023763,2]
[388415864,1759162133207,-792.1,0.00023763,2]
[388415865,1759162133325,-281.92,0.00023763,2]
[388415866,1759162133692,-207.93,0.00023763,2]
[388415867,1759162133808,-480.0,0.00023763,2]
[388415868,1759162133926,-480.0,0.00023763,2]
[388415869,1759162134042,-480.0,0.00023763,2]
[388415870,1759162134158,-480.0,0.00023763,2]
[388415871,1759162134270,-469.70766939,0.00023763,2]
[388415872,1759162134391,-480.0,0.00023763,2]
[388415873,1759162134507,-1899.85,0.00023763,2]
[388415874,1759162135436,-480.0,0.00023763,2]
[388415875,1759162135551,-610.92,0.00023763,2]
[388415876,1759162135667,-501.42,0.00023763,2]
[388415877,1759162135789,-480.0,0.00023763,2]
[388415878,1759162135909,-500.0,0.00023763,2]
[388415879,1759162136030,-480.0,0.00023765,2]
[388415880,1759162136148,-480.0,0.00023765,2]
[388415881,1759162136262,-480.0,0.00023765,2]
[388415882,1759162136375,-204.30657845,0.00023765,2]
[388415883,1759162136486,-191.50366679,0.00023765,2]
[388415884,1759162136598,-500.0,0.00023765,2]
[388415885,1759162140164,-343.55180785,0.00023667,2]
[388415886,1759162140273,-136.44819215,0.00023667,2]
[388415887,1759162140283,-343.55180785,0.00023668,2]
[388415888,1759162140396,-136.44819215,0.00023668,2]
[388415889,1759162140406,-343.55180785,0.00023763,2]
[388415890,1759162140512,-136.44819215,0.00023763,2]
[388415891,1759162140524,-67.8583863,0.00023765,2]
[388415892,1759162140635,-191.50366679,0.00023765,2]
[388415893,1759162140746,-240.63794691,0.00023765,2]
[388415894,1759162140756,-259.36205309,0.00023765,2]
[388415895,1759162140872,-183.70950952,0.00023765,2]
[388415897,1759162179496,-160.95345401,0.00023663,2]
[388415898,1759162179599,-480.0,0.00023667,2]
[388415899,1759162179703,-3627.03,0.00023667,2]
[388415900,1759162179808,-480.0,0.00023667,2]
[388415901,1759162179911,-24.04309198,0.00023668,2]
[388415902,1759162180313,-455.95690802,0.00023668,2]
[388415903,1759162180417,-480.0,0.00023668,2]
[388415904,1759162180522,-480.0,0.00023668,2]
[388415905,1759162180643,-534.18,0.00023668,2]
[388415906,1759162180758,-569.93,0.00023668,2]
[388415907,1759162180865,-600.48,0.00023668,2]
[388415908,1759162181248,-127.05,0.00023668,2]
[388415909,1759162181475,-254.1,0.00023668,2]
[388415910,1759162182013,-508.2,0.00023668,2]
[388415911,1759162182253,-3415.86618396,0.00023668,2]
[388415912,1759162182375,-4432.26618396,0.00023668,2]
[388415913,1759162182484,-1135.47763208,0.00023668,2]
[388415914,1759162182494,-914.58,0.00023668,2]
[388415915,1759162182504,-480.0,0.00023762,2]
[388415916,1759162182515,-2028.17,0.00023762,2]
[388415917,1759162182524,-882.46618396,0.00023763,2]
[388415918,1759162182638,-448.77381604,0.00023763,2]
[388415919,1759162182650,-480.0,0.00023763,2]
[388415920,1759162182659,-2078.13,0.00023763,2]
[388415921,1759162182669,-480.0,0.00023763,2]
[388415922,1759162182679,-480.0,0.00023763,2]
[388415923,1759162182689,-615.93,0.00023763,2]
[388415924,1759162182699,-480.0,0.00023763,2]
[388415925,1759162182708,-480.0,0.00023763,2]
[388415926,1759162182719,-480.0,0.00023763,2]
[388415927,1759162182728,-1038.94,0.00023763,2]
[388415928,1759162182737,-593.23,0.00023763,2]
[388415929,1759162182747,-480.0,0.00023763,2]
[388415930,1759162182757,-1166.48,0.00023763,2]
[388415931,1759162182766,-444.42618396,0.00023763,2]
[388415932,1759162182905,-55.57381604,0.00023763,2]
[388415933,1759162182915,-480.0,0.00023763,2]
[388415934,1759162182925,-748.9,0.00023763,2]
[388415935,1759162182935,-480.0,0.00023763,2]
[388415936,1759162182945,-480.0,0.00023763,2]
[388415937,1759162182955,-300.0,0.00023764,2]
[388415938,1759162182967,-56.92843739,0.00023765,2]
[388415939,1759162182977,-500.0,0.00023765,2]
[388415940,1759162182986,-500.0,0.00023765,2]
[388415941,1759162182996,-500.0,0.00023765,2]
[388415942,1759162183006,-500.0,0.00023765,2]
[388415943,1759162183015,-500.0,0.00023765,2]
[388415944,1759162183025,-500.0,0.00023765,2]
[388415945,1759162183044,-203.12971101,0.00023765,2]
[388415946,1759162183056,-500.0,0.00023765,2]
[388415947,1759162183066,-500.0,0.00023765,2]
[388415948,1759162183076,-200.0,0.00023765,2]
[388415949,1759162183087,-262.37,0.00023766,2]
[388415950,1759162183097,-500.0,0.00023766,2]
[388415951,1759162183107,-480.0,0.00023766,2]
[388415952,1759162183116,-480.0,0.00023766,2]
[388415953,1759162183126,-480.0,0.00023766,2]
[388415954,1759162183136,-284.90803556,0.00023766,2]
[388415955,1759162183252,-195.09196444,0.00023766,2]
[388415956,1759162183262,-674.82,0.00023766,2]
[388415957,1759162183272,-556.02,0.00023766,2]
[388415958,1759162183282,-480.0,0.00023766,2]
[388415959,1759162183292,-480.0,0.00023766,2]
[388415960,1759162183302,-480.0,0.00023766,2]
[388415961,1759162183312,-1411.81,0.00023766,2]
[388415962,1759162183322,-480.0,0.00023766,2]
[388415963,1759162183331,-480.0,0.00023766,2]
[388415964,1759162183341,-330.0018516,0.00023766,2]
[388415965,1759162219918,-1200.0,0.00023666,2]
[388415966,1759162220269,-480.0,0.00023667,2]
[388415967,1759162220392,-480.0,0.00023667,2]
[388415968,1759162220514,-300.0,0.00023667,2]
[388415969,1759162220636,-300.0,0.00023667,2]
[388415970,1759162220757,-300.0,0.00023667,2]
[388415971,1759162220879,-1418.34,0.00023667,2]
[388415972,1759162220998,-480.0,0.00023667,2]
[388415973,1759162221399,-2289.21,0.00023668,2]
[388415974,1759162221524,-2068.1,0.00023668,2]
[388415975,1759162222911,-83.33,0.00023668,2]
[388415976,1759162223038,-1285.39,0.00023668,2]
[388416014,1759162232107,-301.94,0.00023668,2]
[388416015,1759162232117,-3069.14,0.00023668,2]
[388416017,1759162232126,-793.31999999,0.00023668,2]
[388416018,1759162232138,-199.49000001,0.00023668,2]
[388416020,1759162232147,-3969.01,0.00023762,2]
[388416022,1759162232156,-41.69999999,0.00023762,2]
[388416024,1759162232167,-300.60047145,0.00023762,2]
[388416029,1759162232211,-658.21952856,0.00023762,2]
[388416031,1759162232220,-480.0,0.00023762,2]
[388416033,1759162232229,-480.0,0.00023762,2]
[388416035,1759162232239,-510.62,0.00023762,2]
[388416037,1759162232249,-539.25905927,0.00023762,2]
[388416039,1759162232260,-480.0,0.00023762,2]
[388416041,1759162232269,-480.0,0.00023762,2]
[388416042,1759162232278,-480.0,0.00023763,2]
[388416044,1759162232288,-480.0,0.00023763,2]
[388416045,1759162232297,-4701.02,0.00023763,2]
[388416046,1759162232307,-480.0,0.00023763,2]
[388416047,1759162232316,-480.0,0.00023763,2]
[388416048,1759162232326,-480.0,0.00023763,2]
[388416049,1759162232336,-2105.36,0.00023763,2]
[388416050,1759162232345,-480.0,0.00023763,2]
[388416051,1759162232354,-948.31,0.00023763,2]
[388416052,1759162232364,-921.36,0.00023763,2]
[388416053,1759162232377,-480.0,0.00023763,2]